bitfinex/quotes_ETHUSD_20241120
["timestamp","ask_amount","ask_price","bid_price","bid_amount"]
[1732067670504,0.7639,3095.6,3095.3,0.05837331]
[1732067670799,0.7639,3095.6,3094.7,0.3222]
[1732067670990,0.7639,3095.6,3095.4,0.05837331]
[1732067671167,0.7639,3095.6,3094.7,0.42091455]
[1732067671370,0.7739,3095.6,3094.8,0.3222]
[1732067671565,0.7739,3095.6,3094.8,0.38057331]
[1732067672470,0.7739,3095.6,3094.8,0.05837331]
[1732067672819,0.7739,3095.6,3094.5,3.7072]
[1732067673016,0.7739,3095.6,3094.9,0.05837331]
[1732067673304,0.7739,3095.6,3095.0,0.05837331]
[1732067673605,0.7739,3095.6,3094.7,0.3222]
[1732067673780,0.7739,3095.6,3095.1,0.05837331]
[1732067673984,0.7739,3095.6,3094.9,0.3222]
[1732067674192,0.7739,3095.6,3095.2,0.05837331]
[1732067674375,0.7639,3095.6,3094.9,0.3222]
[1732067674576,0.7639,3095.6,3095.3,0.05837331]
[1732067674816,0.7739,3095.6,3094.8,0.3222]
[1732067675116,0.01,3095.3,3094.8,0.3222]
[1732067675274,0.7539,3095.0,3094.9,0.05841108]
[1732067675476,0.7539,3095.0,3094.9,3.0]
[1732067675700,0.7639,3095.0,3094.9,0.05841108]
[1732067675898,0.7639,3095.0,3094.2,0.3222]
[1732067675899,0.01,3094.7,3094.2,0.3222]
[1732067676119,0.7539,3094.6,3094.2,0.3222]
[1732067676324,0.7539,3094.6,3094.3,0.05841108]
[1732067676818,0.7539,3094.6,3094.2,0.3222]
[1732067677020,0.7539,3094.6,3094.4,0.05841108]
[1732067677180,0.7539,3094.6,3093.9,0.3222]
[1732067677382,0.7539,3094.6,3094.5,0.05841108]
[1732067678016,0.7539,3094.6,3094.5,3.05841108]
[1732067678220,0.7539,3094.6,3094.5,3.0]
[1732067678421,0.7539,3094.6,3094.5,0.05646404]
[1732067678578,0.7539,3094.6,3094.5,3.05646404]
[1732067678778,0.01,3094.5,3093.6,0.7284853]
[1732067679205,0.02,3094.5,3093.6,0.7284853]
[1732067679414,0.827,3094.4,3093.6,0.62753543]
[1732067679624,0.827,3094.4,3093.5,0.3222]
[1732067679807,0.02,3094.5,3093.5,0.3222]
[1732067679808,0.01,3094.0,3093.5,0.3222]
[1732067680102,0.827,3093.9,3093.2,0.62521012]
[1732067680697,0.837,3093.9,3092.9,0.8276]
[1732067681652,0.01,3093.6,3092.9,0.92596497]
[1732067681926,0.837,3093.9,3092.9,0.92596497]
[1732067682285,0.837,3093.9,3093.5,3.0]
[1732067683099,0.837,3093.9,3092.7,0.30533543]
[1732067683100,0.837,3093.9,3092.8,0.09922747]
[1732067683316,0.837,3093.9,3093.5,3.0]
[1732067683591,0.837,3093.9,3092.7,0.30533543]
[1732067684128,0.837,3093.9,3093.5,3.0]
[1732067684634,0.837,3093.9,3092.7,0.40469532]
[1732067685135,0.8188919,3093.9,3093.5,3.0]
[1732067686121,0.8188919,3093.9,3093.1,0.10023261]
[1732067686526,0.8188919,3093.9,3093.5,3.0]
[1732067687102,0.8188919,3093.9,3093.1,0.88473261]
[1732067687934,0.8088919,3093.9,3093.1,0.88473261]
[1732067688143,0.8041,3094.1,3093.1,0.88473261]
[1732067688502,0.8041,3094.1,3093.4,0.05675351]
[1732067688809,0.01,3094.3,3093.8,3.0]
[1732067689240,0.01,3094.3,3093.9,0.05673983]
[1732067690132,0.7941,3094.4,3093.7,0.7845]
[1732067690436,0.7941,3094.4,3094.0,3.05673822]
[1732067690644,0.7941,3094.4,3094.0,3.0]
[1732067690800,0.7941,3094.4,3094.1,0.05672535]
[1732067691315,0.7941,3094.4,3094.0,3.0]
[1732067691518,0.7941,3094.4,3094.1,0.05672535]
[1732067691921,0.8041,3094.4,3094.1,0.05672535]
[1732067692121,0.8041,3094.4,3093.7,0.7845]
[1732067692344,0.8041,3094.4,3094.2,0.05672535]
[1732067692550,0.8041,3094.4,3093.7,0.7845]
[1732067692867,0.8041,3094.4,3094.3,0.05672535]
[1732067692998,0.8041,3094.4,3093.8,0.3222]
[1732067693208,0.8041,3094.4,3094.3,0.05672535]
[1732067693417,0.8041,3094.4,3093.8,0.3222]
[1732067693614,0.8041,3094.4,3094.3,0.05672535]
[1732067693917,0.8041,3094.4,3094.3,0.05671407]
[1732067694158,0.8041,3094.4,3094.1,0.3222]
[1732067694362,0.8041,3094.4,3094.3,0.05671407]
[1732067694562,0.8041,3094.4,3094.1,0.3222]
[1732067694860,0.8041,3094.4,3094.3,0.05671407]
[1732067695054,0.8041,3094.4,3093.6,0.3222]
[1732067695357,0.8041,3094.4,3094.0,3.0]
[1732067695557,0.8041,3094.4,3093.7,0.05671407]
[1732067695759,0.8041,3094.4,3094.0,3.0]
[1732067695964,0.01,3093.9,3093.8,0.05671407]
[1732067696261,0.01,3093.9,3093.3,0.0778037]
[1732067696262,0.7595,3093.6,3093.3,0.0778037]
[1732067696564,0.01,3093.5,3093.3,0.0778037]
[1732067697616,0.7595,3093.6,3093.3,3.0778037]
[1732067697912,0.01,3093.7,3093.4,0.30778037]
[1732067698044,0.01,3093.7,3093.3,3.0778037]
[1732067698924,0.01,3093.7,3093.3,0.0778037]
[1732067699171,0.7595,3093.9,3093.3,3.0778037]
[1732067699376,0.7595,3093.9,3093.4,0.34993628]
[1732067699550,0.7595,3093.9,3093.4,3.0]
[1732067699746,0.7595,3093.9,3093.3,0.0778037]
[1732067699950,0.7595,3093.9,3093.4,3.0]
[1732067700250,0.7595,3094.2,3093.3,0.0778037]
[1732067700581,0.7595,3094.5,3094.1,3.0]
[1732067700875,0.7595,3094.5,3094.1,0.3222]
[1732067701075,0.7595,3094.5,3094.3,3.0]
[1732067701265,0.01,3094.8,3094.1,0.3222]
[1732067701589,0.01,3094.8,3093.7,0.7705]
[1732067701590,0.01,3094.8,3094.2,0.3222]
[1732067702289,0.7595,3094.9,3094.2,0.3222]
[1732067702580,0.7595,3094.9,3093.9,3.30533543]
[1732067702581,0.7595,3094.9,3094.0,0.3222]
[1732067702783,0.7595,3094.9,3094.0,0.99123354]
[1732067703778,0.7595,3094.9,3094.1,0.05666421]
[1732067705188,0.01,3096.2,3094.9,0.7595]
[1732067705189,0.7595,3096.2,3094.9,0.7595]
[1732067705355,0.7595,3096.2,3095.0,1.64778481]
[1732067705680,0.7595,3096.2,3095.2,0.55]
[1732067705881,0.7595,3096.2,3095.3,1.29711814]
[1732067706047,0.7595,3096.2,3095.4,3.55]
[1732067706248,0.7595,3096.2,3095.5,2.30926755]
[1732067706469,0.7595,3096.2,3095.6,0.05655649]
[1732067706675,0.7695,3096.5,3095.8,0.55]
[1732067706880,0.7595,3096.5,3095.9,2.36577101]
[1732067707156,2.7107,3098.3,3096.0,4.3205]
[1732067707157,0.7695,3096.9,3096.0,4.3205]
[1732067707390,0.08073206,3098.2,3096.0,4.3205]
[1732067707391,0.7595,3097.2,3096.2,0.55]
[1732067707569,0.7595,3097.2,3096.3,2.30926755]
[1732067707745,0.7595,3097.2,3096.4,3.55]
[1732067707945,0.7595,3097.2,3096.6,0.55]
[1732067708188,0.7595,3097.5,3096.7,2.30926755]
[1732067708346,0.7595,3097.5,3096.8,3.55]
[1732067708549,0.7595,3097.5,3096.9,2.30926755]
[1732067708772,0.01,3097.7,3097.0,0.55]
[1732067708942,0.01,3097.7,3097.1,2.30926755]
[1732067709170,0.01,3097.7,3097.1,5.30926755]
[1732067709369,0.01,3097.7,3097.2,0.05638301]
[1732067709699,0.7595,3097.8,3097.3,2.30926755]
[1732067710201,0.7595,3097.8,3097.4,0.05638301]
[1732067710411,0.01,3097.7,3097.5,1.01214941]
[1732067710697,0.7895,3097.5,3097.4,0.05638301]
[1732067710909,0.7795,3096.6,3095.7,0.758]
[1732067711107,0.7795,3096.6,3095.8,0.54538541]
[1732067711266,0.7795,3096.6,3095.8,1.41013355]
[1732067711989,0.7795,3096.6,3095.9,0.55]
[1732067712185,0.7795,3096.6,3096.1,0.55]
[1732067712395,0.7795,3096.6,3096.2,0.54538541]
[1732067712586,0.7795,3096.6,3096.2,1.41013355]
[1732067713163,0.01,3096.9,3096.3,1.41474814]
[1732067713366,0.01,3096.9,3096.4,0.54538541]
[1732067713806,0.7795,3097.3,3096.5,1.41474814]
[1732067713992,0.7895,3097.6,3096.6,0.54538541]
[1732067714192,0.7895,3097.6,3096.7,0.55]
[1732067714407,0.7895,3097.6,3096.8,0.54538541]
[1732067714563,0.7895,3097.6,3096.9,0.55]
[1732067714911,0.01,3097.4,3096.9,1.09538541]
[1732067715808,0.01,3097.4,3096.1,0.758]
[1732067715809,0.7795,3097.3,3096.1,0.758]
[1732067716113,0.7795,3097.0,3096.2,0.54538541]
[1732067717105,0.7795,3097.0,3096.2,1.06625046]
[1732067717303,0.7795,3097.0,3096.3,0.55]
[1732067717624,0.01,3097.4,3097.0,3.0]
[1732067717625,0.7795,3097.3,3097.0,3.0]
[1732067717914,0.7795,3097.3,3096.5,0.55]
[1732067718113,0.7795,3097.3,3096.6,0.54538541]
[1732067718419,0.7795,3097.3,3096.7,0.55]
[1732067718627,0.7795,3097.3,3096.7,1.14785298]
[1732067719315,0.7795,3097.3,3096.7,0.05246757]
[1732067719617,0.7795,3097.3,3094.8,10.00269042]
[1732067719618,0.01,3096.8,3096.2,0.55]
[1732067720125,0.7795,3096.7,3096.1,0.54538541]
[1732067721518,0.7795,3096.7,3096.2,0.55]
[1732067722506,0.7795,3096.7,3096.2,1.09538541]
[1732067724026,0.01,3096.6,3095.7,0.52086505]
[1732067724195,0.8192,3096.5,3096.2,3.0]
[1732067724398,0.8192,3096.5,3095.8,0.54538541]
[1732067724625,0.8192,3096.5,3096.2,3.0]
[1732067725230,0.8192,3096.8,3096.3,0.54538541]
[1732067725593,0.8192,3096.8,3096.4,0.55]
[1732067725826,0.8192,3097.2,3096.6,0.55]
[1732067726035,0.8292,3097.5,3096.6,0.55]
[1732067726189,0.8192,3097.5,3097.2,3.0]
[1732067726531,0.8192,3097.5,3096.8,0.55]
[1732067726829,0.8192,3097.5,3096.8,1.09538541]
[1732067727783,0.8192,3097.5,3097.0,0.55]
[1732067728220,0.8192,3097.5,3096.9,0.3222]
[1732067728716,0.8192,3097.5,3096.7,0.3222]
[1732067729076,0.8192,3097.5,3096.8,1.09538541]
[1732067729353,0.8192,3097.5,3097.0,0.55]
[1732067729655,0.8292,3097.5,3097.0,0.55]
[1732067729832,0.01,3098.4,3096.1,0.3222]
[1732067729833,0.8192,3096.9,3096.1,0.3222]
[1732067730017,0.8192,3096.9,3095.9,0.753]
[1732067730217,0.01,3096.8,3095.5,0.753]
[1732067730423,0.8192,3096.7,3095.5,0.753]
[1732067730864,0.01,3096.6,3095.6,0.3222]
[1732067731361,0.01,3096.6,3095.6,0.80977328]
[1732067732172,0.01,3096.6,3095.7,1.35977328]
[1732067732454,0.01,3096.6,3095.7,1.74533947]
[1732067732758,0.01,3096.6,3095.7,2.31170589]
[1732067733658,0.01,3096.6,3095.8,0.05083335]
[1732067733960,0.01,3096.6,3095.9,1.03757328]
[1732067734268,0.8192,3096.7,3095.9,1.03757328]
[1732067734421,0.8192,3096.7,3096.1,0.3222]
[1732067734626,0.8192,3096.7,3096.2,0.55]
[1732067735157,0.8192,3096.7,3096.5,3.0]
[1732067735591,0.8192,3096.7,3096.6,0.05083895]
[1732067737550,0.8192,3096.7,3096.0,3.55]
[1732067737751,0.8192,3096.7,3096.2,0.55]
[1732067737972,0.8192,3096.7,3096.5,3.0]
[1732067738288,0.8192,3096.7,3096.2,0.55]
[1732067738289,0.8192,3096.7,3096.3,0.05083895]
[1732067738586,0.8192,3096.7,3096.4,0.05083895]
[1732067738793,0.0907276,3098.0,3096.5,0.55]
[1732067738794,0.8192,3097.1,3096.5,0.55]
[1732067739094,0.8192,3097.4,3096.9,0.3222]
[1732067739396,0.01,3099.0,3097.3,3.3222]
[1732067739397,0.01,3097.6,3097.3,3.3222]
[1732067739604,0.806,3097.5,3097.3,0.3222]
[1732067739900,0.01,3097.3,3097.0,3.0]
[1732067740094,0.01,3097.3,3096.9,0.3222]
[1732067740391,0.01,3097.3,3096.5,0.55]
[1732067740551,0.01,3097.3,3096.7,3.0]
[1732067740756,0.01,3097.3,3096.9,0.8722]
[1732067740957,0.806,3097.2,3096.9,0.8722]
[1732067742588,0.806,3097.2,3096.9,0.3222]
[1732067742757,0.806,3097.2,3096.5,0.3222]
[1732067743142,0.01,3097.0,3096.5,0.3222]
[1732067743907,0.816,3097.2,3096.6,0.3222]
[1732067744104,0.01,3097.0,3096.7,3.0]
[1732067744306,0.01,3097.0,3096.7,3.55]
[1732067744543,0.01,3097.1,3096.7,0.55]
[1732067744743,0.806,3097.2,3096.7,0.55]
[1732067744949,0.806,3097.2,3096.6,0.3222]
[1732067745248,0.816,3097.2,3096.7,0.55]
[1732067745918,0.816,3097.2,3096.5,0.3222]
[1732067746122,0.816,3097.2,3096.6,0.3222]
[1732067746310,0.816,3097.2,3096.7,0.55]
[1732067747028,0.816,3097.2,3096.6,0.3222]
[1732067747227,0.816,3097.2,3096.7,0.55]
[1732067748158,0.816,3097.2,3096.6,0.3222]
[1732067748364,0.816,3097.2,3096.7,0.55]
[1732067748584,0.816,3097.2,3096.6,0.3222]
[1732067748585,0.01,3097.0,3096.8,0.05086285]
[1732067748722,0.806,3096.9,3096.8,0.05086285]
[1732067748928,0.806,3096.9,3096.2,0.3222]
[1732067749123,0.806,3096.9,3096.3,0.05081901]
[1732067749769,0.806,3096.9,3096.6,3.0]
[1732067749928,0.806,3096.9,3096.3,0.05081901]
[1732067750267,0.806,3096.9,3096.4,0.55]
[1732067750769,0.806,3096.9,3096.6,0.55]
[1732067751568,0.806,3096.9,3096.7,0.05081981]
[1732067753028,0.806,3096.9,3096.2,0.3222]
[1732067753533,0.806,3096.9,3096.3,0.0508238]
[1732067753844,0.806,3096.9,3095.9,6.88542078]
[1732067754170,0.816,3097.2,3096.6,3.0]
[1732067754375,0.816,3097.2,3096.4,0.8075]
[1732067754376,0.816,3097.2,3096.7,0.60084611]
[1732067755367,0.01,3097.0,3096.7,0.05084611]
[1732067755588,0.01,3097.0,3096.5,0.3222]
[1732067755870,0.01,3097.0,3096.8,0.05083495]
[1732067756041,0.01,3097.0,3096.5,0.3222]
[1732067756248,0.806,3096.9,3096.5,0.3222]
[1732067756444,0.806,3096.9,3096.6,3.05082619]
[1732067756641,0.806,3096.9,3096.6,0.05082619]
[1732067757170,0.806,3096.9,3096.1,0.3222]
[1732067757171,0.806,3096.9,3096.7,0.05082698]
[1732067757367,0.806,3096.9,3096.1,0.3222]
[1732067757568,0.806,3096.9,3096.3,0.3222]
[1732067757775,0.806,3096.9,3096.1,0.55]
[1732067757957,0.806,3096.9,3096.3,0.55]
[1732067758388,0.806,3096.9,3096.4,0.05082698]
[1732067759893,0.08072647,3098.1,3096.4,0.05082698]
[1732067759894,0.806,3096.5,3096.4,0.05082698]
[1732067760311,0.806,3096.5,3095.1,0.38556619]
[1732067760463,0.806,3096.5,3095.9,0.87313947]
[1732067760664,0.806,3096.5,3095.9,0.48757328]
[1732067760883,0.01,3096.3,3095.5,0.3222]
[1732067761088,0.01,3096.3,3096.0,0.04580563]
[1732067761286,0.01,3096.3,3095.8,0.3222]
[1732067761516,0.8104,3096.2,3096.1,0.0458278]
[1732067761809,0.8104,3096.0,3095.1,0.3222]
[1732067762308,0.8104,3096.0,3095.1,0.80977328]
[1732067762506,0.01,3095.8,3095.1,0.48757328]
[1732067762711,0.8104,3095.7,3095.1,0.48757328]
[1732067762869,0.8104,3095.7,3095.1,0.65052723]
[1732067763070,0.8104,3095.7,3094.7,0.10047064]
[1732067763071,0.01,3095.6,3094.7,0.10047064]
[1732067763369,0.01,3095.6,3094.8,0.0458278]
[1732067763370,0.8104,3095.3,3094.8,0.0458278]
[1732067763569,0.8104,3095.3,3094.3,0.48757328]
[1732067763766,0.8104,3095.3,3094.4,0.0458278]
[1732067764184,0.8104,3095.3,3094.4,0.53340108]
[1732067764695,0.8104,3094.8,3094.4,0.0458278]
[1732067765107,0.8104,3094.8,3094.0,0.48757328]
[1732067765297,0.8104,3094.8,3094.5,0.0458278]
[1732067765498,0.8104,3094.8,3094.0,0.48757328]
[1732067765721,0.8104,3094.8,3094.6,0.0458278]
[1732067765884,0.8104,3094.8,3094.1,0.55]
[1732067766085,0.8104,3094.8,3094.2,0.48757328]
[1732067766396,0.8104,3094.8,3094.6,3.0]
[1732067766397,0.8204,3094.8,3094.6,3.0]
[1732067766597,0.8104,3094.8,3094.6,3.0]
[1732067766830,0.8104,3095.1,3094.7,3.0]
[1732067767032,0.8104,3095.1,3094.7,0.0458278]
[1732067767235,0.8104,3095.1,3094.7,3.0]
[1732067767401,0.8104,3095.1,3094.8,0.0458278]
[1732067767793,0.8104,3095.1,3094.7,3.0]
[1732067767986,0.8104,3095.1,3094.9,0.0458278]
[1732067768192,0.8104,3095.1,3094.3,1.3064]
[1732067768439,0.8104,3095.1,3095.0,0.0458278]
[1732067768640,0.8104,3095.4,3094.4,1.0525368]
[1732067768927,0.8104,3095.4,3095.0,0.5958278]
[1732067769130,0.8104,3095.4,3095.0,0.55]
[1732067769335,0.8104,3095.4,3095.3,3.0]
[1732067769694,0.8104,3095.4,3095.3,0.0458278]
[1732067769888,0.8104,3095.4,3095.3,3.0458278]
[1732067770127,0.8104,3095.4,3095.0,0.55]
[1732067770338,0.8104,3095.4,3095.3,3.0458278]
[1732067770505,0.8104,3095.4,3095.0,0.55]
[1732067770699,0.01,3095.6,3095.3,0.0458278]
[1732067770911,0.7632,3095.7,3095.0,1.03757328]
[1732067771090,0.7632,3095.7,3095.5,3.0]
[1732067771503,0.7632,3095.7,3095.1,0.18574733]
[1732067771705,0.7632,3095.7,3095.6,0.0459458]
[1732067771902,0.7632,3095.7,3095.5,3.0]
[1732067772103,0.7632,3095.7,3095.6,0.0459458]
[1732067772933,0.7632,3095.7,3094.4,0.3222]
[1732067773098,0.84396934,3095.6,3094.4,0.3222]
[1732067773304,0.7632,3095.6,3094.5,0.04600996]
[1732067773546,0.01,3095.9,3094.5,0.04600996]
[1732067773547,0.01,3095.0,3094.5,0.04600996]
[1732067773715,0.7632,3094.9,3094.5,0.04600996]
[1732067773910,0.7632,3094.9,3094.7,3.3222]
[1732067774143,0.7632,3094.9,3094.7,0.3222]
[1732067774502,0.01,3095.0,3094.8,0.04600996]
[1732067774707,0.7732,3095.2,3094.8,0.04600996]
[1732067775022,0.01,3095.0,3094.9,0.04600996]
[1732067775436,0.01,3095.0,3094.7,0.3222]
[1732067775943,0.7732,3095.5,3094.9,0.55]
[1732067776145,0.01,3095.3,3094.9,0.55]
[1732067776347,0.7632,3095.5,3095.1,0.8722]
[1732067776504,0.7732,3095.8,3095.3,0.3222]
[1732067776704,0.7732,3095.8,3095.4,0.55]
[1732067777121,0.7632,3095.8,3095.5,0.04603373]
[1732067777529,0.01,3096.0,3095.5,0.04603373]
[1732067777845,0.01,3096.0,3095.6,0.55]
[1732067778052,0.01,3096.0,3095.6,0.59600758]
[1732067779557,0.01,3095.8,3095.6,0.59600758]
[1732067780223,0.01,3096.0,3095.6,0.59600758]
[1732067780616,0.01,3096.0,3095.8,3.0]
[1732067780865,0.01,3096.2,3095.6,0.04600758]
[1732067781102,3.30874604,3097.9,3095.5,0.3222]
[1732067781103,0.8165,3096.0,3095.9,0.0459656]
[1732067781412,0.8165,3096.0,3095.5,0.3222]
[1732067781590,0.01,3095.8,3095.5,0.3222]
[1732067782206,0.8165,3096.0,3095.6,0.55]
[1732067782768,0.8165,3096.0,3095.5,0.55]
[1732067783760,0.8165,3096.0,3095.7,0.55]
[1732067784396,0.01,3096.0,3095.7,0.55]
[1732067784613,0.01,3096.1,3095.7,0.8721]
[1732067785389,0.8239,3096.3,3095.7,0.8721]
[1732067785980,0.8139,3096.3,3095.7,0.8721]
[1732067786206,0.01,3096.2,3096.0,3.0]
[1732067786409,0.01,3096.2,3095.7,0.8721]
[1732067788273,0.8139,3096.3,3095.7,1.35967328]
[1732067788380,0.8139,3096.3,3096.0,3.0]
[1732067788583,0.01,3096.5,3095.8,3.0]
[1732067788909,0.01,3096.5,3095.9,2.18733947]
[1732067789515,0.01,3096.5,3096.1,0.8721]
[1732067789695,0.8139,3096.6,3096.1,0.8721]
[1732067790016,0.8139,3096.6,3096.0,0.55]
[1732067790330,0.8139,3096.6,3096.0,4.36968634]
[1732067790683,0.8139,3096.6,3096.0,1.36968634]
[1732067790884,0.8139,3096.6,3096.0,0.55]
[1732067791120,0.01,3096.3,3095.4,6.385]
[1732067791320,0.01,3096.0,3095.4,4.51769619]
[1732067791527,0.01,3096.0,3095.4,3.77056619]
[1732067792729,0.01,3096.0,3095.7,0.3221]
[1732067793595,0.01,3096.0,3095.8,0.04587056]
[1732067793806,0.01,3096.0,3095.7,0.3221]
[1732067793984,0.01,3096.0,3095.9,0.04587056]
[1732067794186,0.01,3096.0,3095.7,3.0]
[1732067794187,0.8239,3096.0,3095.7,3.0]
[1732067794622,0.8239,3096.0,3095.8,0.04587135]
[1732067795003,0.8239,3096.0,3095.7,3.0]
[1732067795325,0.8239,3096.0,3095.9,0.04586501]
[1732067795522,0.8239,3096.0,3095.7,3.0]
[1732067795730,0.8239,3096.0,3095.9,0.04586501]
[1732067795957,0.8239,3096.0,3095.7,3.0]
[1732067796130,0.8239,3096.0,3095.9,0.04586501]
[1732067796310,0.8239,3096.0,3095.3,0.8721]
[1732067796311,0.8239,3096.0,3095.8,0.04588085]
[1732067796513,0.8239,3096.0,3095.9,0.04589036]
[1732067796843,0.8139,3096.0,3095.6,0.8721]
[1732067797019,0.8139,3096.0,3095.9,0.04589036]
[1732067797214,0.8139,3096.0,3095.6,0.8721]
[1732067797215,0.8139,3096.0,3095.6,1.07428662]
[1732067797449,0.8139,3096.0,3095.9,0.04587531]
[1732067797656,0.01,3096.2,3096.0,0.3221]
[1732067798121,0.01,3096.2,3096.1,0.55]
[1732067798462,0.01,3096.5,3096.1,0.91797531]
[1732067799143,0.8139,3096.2,3096.1,0.91797531]
[1732067800160,0.8139,3096.2,3096.1,0.04587531]
[1732067800666,0.01,3096.1,3095.9,0.3221]
[1732067801366,0.8139,3096.2,3095.9,0.3221]
[1732067801655,0.01,3096.3,3096.0,0.8721]
[1732067804179,0.01,3096.3,3095.6,0.51624859]
[1732067804471,0.01,3096.3,3095.8,0.3221]
[1732067804630,0.01,3096.3,3096.0,3.0]
[1732067805034,0.01,3096.3,3095.7,0.55]
[1732067805271,0.01,3096.3,3096.0,0.3221]
[1732067806440,0.01,3096.3,3096.0,3.3221]
[1732067806641,0.01,3096.3,3096.0,0.3221]
[1732067807939,0.01,3096.7,3096.1,2.22243947]
[1732067808137,0.01,3096.7,3096.3,0.55]
[1732067808562,0.01,3096.7,3096.4,0.04584995]
[1732067809152,0.01,3096.5,3096.4,0.04584995]
[1732067809347,0.85684238,3096.5,3096.4,0.04584995]
[1732067809582,0.01,3095.9,3095.2,0.3221]
[1732067809784,0.7661,3095.8,3095.2,0.3221]
[1732067810103,0.7661,3095.8,3095.3,0.04429298]
[1732067810236,0.7661,3095.8,3095.4,0.3221]
[1732067810668,0.7661,3095.8,3095.5,0.04429455]
[1732067811765,0.01,3095.9,3095.7,0.3221]
[1732067811968,0.01,3096.3,3095.8,0.55]
[1732067812376,0.01,3096.3,3095.9,0.04432367]
[1732067812699,0.08073491,3097.8,3096.0,1.3493]
[1732067812700,0.7761,3096.7,3096.0,1.3493]
[1732067812843,0.7761,3096.7,3096.3,0.3221]
[1732067813043,0.01,3096.4,3096.3,0.3221]
[1732067813394,0.01,3096.4,3095.9,0.55]
[1732067813395,0.7661,3096.3,3095.9,0.55]
[1732067813752,0.7661,3096.3,3096.0,0.3221]
[1732067814487,0.01,3096.4,3096.0,0.3221]
[1732067814699,0.7661,3096.3,3095.9,0.55]
[1732067814910,0.7661,3096.3,3095.9,0.8721]
[1732067815374,0.01,3096.2,3095.9,0.3221]
[1732067815564,0.01,3096.2,3095.4,0.7993]
[1732067815764,0.01,3096.2,3095.5,0.3221]
[1732067816504,0.01,3096.2,3095.5,3.3221]
[1732067816674,0.01,3096.2,3095.9,3.3221]
[1732067816876,0.01,3096.2,3095.9,0.3221]
[1732067817400,0.01,3096.0,3095.4,0.3221]
[1732067817600,0.01,3095.6,3094.7,0.38556619]
[1732067817830,0.01,3095.6,3094.7,3.77056619]
[1732067817967,0.01,3095.6,3094.7,3.86838523]
[1732067818168,0.01,3095.6,3094.8,0.46676852]
[1732067818479,0.7761,3095.9,3095.0,0.3221]
[1732067818683,0.7761,3095.9,3095.3,0.8721]
[1732067818888,0.7761,3095.9,3095.4,0.16714]
[1732067819095,0.7761,3095.9,3095.3,0.3221]
[1732067819096,0.01,3095.6,3095.3,0.3221]
[1732067819406,0.01,3095.6,3095.4,3.0]
[1732067819577,0.01,3095.6,3095.3,0.3221]
[1732067819783,0.01,3095.6,3095.4,3.0]
[1732067820176,0.01,3095.8,3095.4,0.3]
[1732067820388,0.01,3096.1,3095.6,0.55]
[1732067820693,0.01,3096.1,3095.9,0.55]
[1732067820895,0.7761,3096.3,3095.6,1.3493]
[1732067821066,0.01,3097.4,3095.8,0.55]
[1732067821067,0.01,3096.5,3095.8,0.55]
[1732067821473,0.01,3096.3,3095.7,0.8721]
[1732067821713,0.01,3096.3,3095.7,4.67774]
[1732067822276,0.01,3096.1,3095.7,1.67774]
[1732067822480,0.01,3096.1,3095.7,0.8721]
[1732067822680,0.01,3095.6,3094.7,5.08001081]
[1732067822992,0.7661,3095.5,3094.8,0.7993]
[1732067823196,0.7661,3095.5,3094.6,0.38556619]
[1732067823622,0.7661,3095.5,3094.7,0.36349136]
[1732067824089,0.7661,3095.5,3094.9,0.3221]
[1732067824289,0.76452625,3095.5,3095.1,0.3221]
[1732067824520,0.76452625,3095.5,3095.3,3.0]
[1732067824934,0.76452625,3095.5,3095.2,0.55]
[1732067825089,0.76452625,3095.5,3095.4,0.04144882]
[1732067825295,0.76452625,3095.5,3095.2,0.55]
[1732067825596,0.76452625,3095.5,3095.4,0.04144882]
[1732067825828,0.76452625,3095.5,3095.2,0.55]
[1732067826840,0.76452625,3095.5,3095.3,0.04144882]
[1732067827508,0.01,3095.6,3095.3,0.04144882]
[1732067827689,0.01,3095.6,3095.4,0.3221]
[1732067828040,0.01,3095.6,3095.5,0.04145197]
[1732067829292,0.01,3095.6,3095.3,3.3221]
[1732067829528,0.01,3095.6,3095.5,0.04145118]
[1732067829733,0.01,3095.6,3095.3,0.3221]
[1732067829942,0.01,3095.6,3095.5,0.04145118]
[1732067830235,0.01,3095.6,3095.3,3.3221]
[1732067830446,0.01,3095.6,3095.3,3.70931]
[1732067830735,0.01,3095.9,3095.4,0.91355118]
[1732067831295,0.01,3095.6,3095.5,3.8721]
[1732067831723,0.01,3095.6,3095.5,0.91354803]
[1732067832496,0.01,3095.6,3095.5,0.04144803]
[1732067832851,0.8418,3095.6,3095.2,0.3221]
[1732067833071,0.01,3095.0,3094.3,0.8247]
[1732067833200,0.8318,3094.7,3094.1,0.8247]
[1732067833503,0.8318,3094.7,3094.1,1.21026619]
[1732067833710,0.8318,3094.7,3094.1,1.66979281]
[1732067834038,0.8318,3094.7,3094.2,0.3221]
[1732067834242,0.01,3094.6,3094.2,0.3221]
[1732067834892,0.01,3094.6,3094.5,0.55]
[1732067835097,0.01,3094.6,3094.4,0.3221]
[1732067835913,0.01,3094.6,3094.2,0.3221]
[1732067836632,0.01,3094.6,3094.3,3.3221]
[1732067836833,0.01,3094.6,3094.3,0.3221]
[1732067837003,0.01,3094.6,3094.3,3.3221]